Workbook

Sheet ResourceLevelConfig
A1: ID | B1: Level | C1: value1 | D1: value2 | E1: value3 | F1: value4 | G1: value5 | H1: value6
A2: int | B2: int | C2: float | D2: float | E2: float | F2: float | G2: float | H2: float
B4: 等级 | C4: 1001 铜钱 | D4: 1002 银锭 | E4: 1003 修为 | F4: 1004 金锭 | G4: 1005 功法灵气 | H4: 1006 法宝灵韵 | J4: 1.01006953 | K4: =I304 -> 19999.99153 | L4: 升级份数
A5: 1 | B5: 1 | C5: 1000 | D5: 100 | E5: 100 | F5: 100 | G5: =H5 -> 50 | H5: 50 | I5: 1000 | L5: 4
A6: 2 | B6: 2 | C6: =ROUND($I6*C$5/$I$5,0) -> 1010 | D6: 101 | E6: =ROUND($I6*E$5/$I$5*0.1,0)*10 -> 100 | F6: 101 | G6: =H6 -> 51 | H6: 51 | I6: =MAX(I5+I$5*0.01,I5*$J$4) -> 1010.06953 | L6: 4.1
A7: 3 | B7: 3 | C7: 1020 | D7: 102 | E7: =ROUND($I7*E$5/$I$5*0.1,0)*10 -> 100 | F7: 102 | G7: 52 | H7: 52 | I7: 1020.240455 | L7: 4.2
A8: 4 | B8: 4 | C8: 1031 | D8: 103 | E8: 100 | F8: 103 | G8: 53 | H8: 53 | I8: 1030.513797 | L8: 4.3
A9: 5 | B9: 5 | C9: 1041 | D9: 104 | E9: 100 | F9: 104 | G9: 54 | H9: 54 | I9: 1040.890587 | L9: 4.4
A10: 6 | B10: 6 | C10: 1051 | D10: 105 | E10: 110 | F10: 105 | G10: 55 | H10: 55 | I10: 1051.371866 | L10: 4.5
A11: 7 | B11: 7 | C11: 1062 | D11: 106 | E11: 110 | F11: 106 | G11: 56 | H11: 56 | I11: 1061.958686 | L11: 4.6
A12: 8 | B12: 8 | C12: 1073 | D12: 107 | E12: 110 | F12: 107 | G12: 57 | H12: 57 | I12: 1072.652111 | L12: 4.7
A13: 9 | B13: 9 | C13: 1083 | D13: 108 | E13: 110 | F13: 108 | G13: 58 | H13: 58 | I13: 1083.453214 | L13: 4.8
A14: 10 | B14: 10 | C14: 1094 | D14: 109 | E14: 110 | F14: 109 | G14: 59 | H14: 59 | I14: 1094.363079 | L14: 4.9
A15: 11 | B15: 11 | C15: 1105 | D15: 111 | E15: 110 | F15: 111 | G15: 60 | H15: 60 | I15: 1105.3828 | L15: 5
A16: 12 | B16: 12 | C16: =ROUND($I16*C$5/$I$5,0) -> 1117 | D16: 112 | E16: 110 | F16: 112 | G16: 61 | H16: 61 | I16: 1116.513486 | L16: 5.1
A17: 13 | B17: 13 | C17: 1128 | D17: 113 | E17: 110 | F17: 113 | G17: 62 | H17: 62 | I17: 1127.756252 | L17: 5.2
A18: 14 | B18: 14 | C18: 1139 | D18: 114 | E18: 110 | F18: 114 | G18: 63 | H18: 63 | I18: 1139.112227 | L18: 5.3
A19: 15 | B19: 15 | C19: 1151 | D19: 115 | E19: 120 | F19: 115 | G19: 64 | H19: 64 | I19: 1150.582552 | L19: 5.4
A20: 16 | B20: 16 | C20: 1162 | D20: 116 | E20: 120 | F20: 116 | G20: 65 | H20: 65 | I20: 1162.168377 | L20: 5.5
A21: 17 | B21: 17 | C21: 1174 | D21: 117 | E21: 120 | F21: 117 | G21: 66 | H21: 66 | I21: 1173.870867 | L21: 5.6
A22: 18 | B22: 18 | C22: 1186 | D22: 119 | E22: 120 | F22: 119 | G22: 67 | H22: 67 | I22: 1185.691195 | L22: 5.7
A23: 19 | B23: 19 | C23: 1198 | D23: 120 | E23: 120 | F23: 120 | G23: 68 | H23: 68 | I23: 1197.630548 | L23: 5.8
A24: 20 | B24: 20 | C24: 1210 | D24: 121 | E24: 120 | F24: 121 | G24: 69 | H24: 69 | I24: 1209.690124 | L24: 5.9
A25: 21 | B25: 21 | C25: 1222 | D25: 122 | E25: 120 | F25: 122 | G25: 70 | H25: 70 | I25: 1221.871135 | L25: 6
A26: 22 | B26: 22 | C26: =ROUND($I26*C$5/$I$5,0) -> 1234 | D26: 123 | E26: 120 | F26: 123 | G26: 71 | H26: 71 | I26: 1234.174803 | L26: 6.1
A27: 23 | B27: 23 | C27: 1247 | D27: 125 | E27: 120 | F27: 125 | G27: 72 | H27: 72 | I27: 1246.602364 | L27: 6.2
A28: 24 | B28: 24 | C28: 1259 | D28: 126 | E28: 130 | F28: 126 | G28: 73 | H28: 73 | I28: 1259.155064 | L28: 6.3
A29: 25 | B29: 25 | C29: 1272 | D29: 127 | E29: 130 | F29: 127 | G29: 74 | H29: 74 | I29: 1271.834163 | L29: 6.4
A30: 26 | B30: 26 | C30: 1285 | D30: 128 | E30: 130 | F30: 128 | G30: 75 | H30: 75 | I30: 1284.640936 | L30: 6.5
A31: 27 | B31: 27 | C31: 1298 | D31: 130 | E31: 130 | F31: 130 | G31: 76 | H31: 76 | I31: 1297.576666 | L31: 6.6
A32: 28 | B32: 28 | C32: 1311 | D32: 131 | E32: 130 | F32: 131 | G32: 77 | H32: 77 | I32: 1310.642653 | L32: 6.7
A33: 29 | B33: 29 | C33: 1324 | D33: 132 | E33: 130 | F33: 132 | G33: 78 | H33: 78 | I33: 1323.840209 | L33: 6.8
A34: 30 | B34: 30 | C34: 1337 | D34: 134 | E34: 130 | F34: 134 | G34: 79 | H34: 79 | I34: 1337.170657 | L34: 6.9
A35: 31 | B35: 31 | C35: 1351 | D35: 135 | E35: 140 | F35: 135 | G35: 80 | H35: 80 | I35: 1350.635337 | L35: 7
A36: 32 | B36: 32 | C36: =ROUND($I36*C$5/$I$5,0) -> 1364 | D36: 136 | E36: 140 | F36: 136 | G36: 81 | H36: 81 | I36: 1364.2356 | L36: 7.1
A37: 33 | B37: 33 | C37: 1378 | D37: 138 | E37: 140 | F37: 138 | G37: 82 | H37: 82 | I37: 1377.972812 | L37: 7.2
A38: 34 | B38: 34 | C38: 1392 | D38: 139 | E38: 140 | F38: 139 | G38: 83 | H38: 83 | I38: 1391.84835 | L38: 7.3
A39: 35 | B39: 35 | C39: 1406 | D39: 141 | E39: 140 | F39: 141 | G39: 84 | H39: 84 | I39: 1405.863609 | L39: 7.4
A40: 36 | B40: 36 | C40: 1420 | D40: 142 | E40: 140 | F40: 142 | G40: 85 | H40: 85 | I40: 1420.019995 | L40: 7.5
A41: 37 | B41: 37 | C41: 1434 | D41: 143 | E41: 140 | F41: 143 | G41: 86 | H41: 86 | I41: 1434.318929 | L41: 7.6
A42: 38 | B42: 38 | C42: 1449 | D42: 145 | E42: 140 | F42: 145 | G42: 87 | H42: 87 | I42: 1448.761846 | L42: 7.7
A43: 39 | B43: 39 | C43: 1463 | D43: 146 | E43: 150 | F43: 146 | G43: 88 | H43: 88 | I43: 1463.350197 | L43: 7.8
A44: 40 | B44: 40 | C44: 1478 | D44: 148 | E44: 150 | F44: 148 | G44: 89 | H44: 89 | I44: 1478.085446 | L44: 7.9
A45: 41 | B45: 41 | C45: 1493 | D45: 149 | E45: 150 | F45: 149 | G45: 90 | H45: 90 | I45: 1492.969072 | L45: 8
A46: 42 | B46: 42 | C46: =ROUND($I46*C$5/$I$5,0) -> 1508 | D46: 151 | E46: 150 | F46: 151 | G46: 91 | H46: 91 | I46: 1508.002568 | L46: 8.1
A47: 43 | B47: 43 | C47: 1523 | D47: 152 | E47: 150 | F47: 152 | G47: 92 | H47: 92 | I47: 1523.187446 | L47: 8.2
A48: 44 | B48: 44 | C48: 1539 | D48: 154 | E48: 150 | F48: 154 | G48: 93 | H48: 93 | I48: 1538.525227 | L48: 8.3
A49: 45 | B49: 45 | C49: 1554 | D49: 155 | E49: 160 | F49: 155 | G49: 94 | H49: 94 | I49: 1554.017453 | L49: 8.4
A50: 46 | B50: 46 | C50: 1570 | D50: 157 | E50: 160 | F50: 157 | G50: 95 | H50: 95 | I50: 1569.665678 | L50: 8.5
A51: 47 | B51: 47 | C51: 1585 | D51: 159 | E51: 160 | F51: 159 | G51: 96 | H51: 96 | I51: 1585.471474 | L51: 8.6
A52: 48 | B52: 48 | C52: 1601 | D52: 160 | E52: 160 | F52: 160 | G52: 97 | H52: 97 | I52: 1601.436427 | L52: 8.7
A53: 49 | B53: 49 | C53: 1618 | D53: 162 | E53: 160 | F53: 162 | G53: 98 | H53: 98 | I53: 1617.562139 | L53: 8.8
A54: 50 | B54: 50 | C54: 1634 | D54: 163 | E54: 160 | F54: 163 | G54: 99 | H54: 99 | I54: 1633.850229 | L54: 8.9
A55: 51 | B55: 51 | C55: 1650 | D55: 165 | E55: 170 | F55: 165 | G55: 100 | H55: 100 | I55: 1650.302333 | L55: 9
A56: 52 | B56: 52 | C56: =ROUND($I56*C$5/$I$5,0) -> 1667 | D56: 167 | E56: 170 | F56: 167 | G56: 101 | H56: 101 | I56: 1666.920102 | L56: 9.1
A57: 53 | B57: 53 | C57: 1684 | D57: 168 | E57: 170 | F57: 168 | G57: 102 | H57: 102 | I57: 1683.705204 | L57: 9.2
A58: 54 | B58: 54 | C58: 1701 | D58: 170 | E58: 170 | F58: 170 | G58: 103 | H58: 103 | I58: 1700.659324 | L58: 9.3
A59: 55 | B59: 55 | C59: 1718 | D59: 172 | E59: 170 | F59: 172 | G59: 104 | H59: 104 | I59: 1717.784164 | L59: 9.4
A60: 56 | B60: 56 | C60: 1735 | D60: 174 | E60: 170 | F60: 174 | G60: 105 | H60: 105 | I60: 1735.081443 | L60: 9.5
A61: 57 | B61: 57 | C61: 1753 | D61: 175 | E61: 180 | F61: 175 | G61: 106 | H61: 106 | I61: 1752.552898 | L61: 9.6
A62: 58 | B62: 58 | C62: 1770 | D62: 177 | E62: 180 | F62: 177 | G62: 107 | H62: 107 | I62: 1770.200282 | L62: 9.7
A63: 59 | B63: 59 | C63: 1788 | D63: 179 | E63: 180 | F63: 179 | G63: 108 | H63: 108 | I63: 1788.025367 | L63: 9.8
A64: 60 | B64: 60 | C64: 1806 | D64: 181 | E64: 180 | F64: 181 | G64: 109 | H64: 109 | I64: 1806.029942 | L64: 9.9
A65: 61 | B65: 61 | C65: 1824 | D65: 182 | E65: 180 | F65: 182 | G65: 110 | H65: 110 | I65: 1824.215815 | L65: 10
A66: 62 | B66: 62 | C66: =ROUND($I66*C$5/$I$5,0) -> 1843 | D66: 184 | E66: 180 | F66: 184 | G66: 111 | H66: 111 | I66: 1842.58481 | L66: 10.1
A67: 63 | B67: 63 | C67: 1861 | D67: 186 | E67: 190 | F67: 186 | G67: 112 | H67: 112 | I67: 1861.138774 | L67: 10.2
A68: 64 | B68: 64 | C68: 1880 | D68: 188 | E68: 190 | F68: 188 | G68: 113 | H68: 113 | I68: 1879.879566 | L68: 10.3
A69: 65 | B69: 65 | C69: 1899 | D69: 190 | E69: 190 | F69: 190 | G69: 114 | H69: 114 | I69: 1898.80907 | L69: 10.4
A70: 66 | B70: 66 | C70: 1918 | D70: 192 | E70: 190 | F70: 192 | G70: =H70 -> 115 | H70: 115 | I70: =MAX(I69+I$5*0.01,I69*$J$4) -> 1917.929185 | L70: 10.5
A71: 67 | B71: 67 | C71: 1937 | D71: 194 | E71: =ROUND($I71*E$5/$I$5*0.1,0)*10 -> 190 | F71: 194 | G71: 116 | H71: 116 | I71: 1937.24183 | L71: 10.6
A72: 68 | B72: 68 | C72: 1957 | D72: 196 | E72: 200 | F72: 196 | G72: 117 | H72: 117 | I72: 1956.748945 | L72: 10.7
A73: 69 | B73: 69 | C73: 1976 | D73: 198 | E73: 200 | F73: 198 | G73: 118 | H73: 118 | I73: 1976.452487 | L73: 10.8
A74: 70 | B74: 70 | C74: 1996 | D74: 200 | E74: 200 | F74: 200 | G74: 119 | H74: 119 | I74: 1996.354435 | L74: 10.9
A75: 71 | B75: 71 | C75: 2016 | D75: 202 | E75: 200 | F75: 202 | G75: 120 | H75: 120 | I75: 2016.456786 | L75: 11
A76: 72 | B76: 72 | C76: =ROUND($I76*C$5/$I$5,0) -> 2037 | D76: 204 | E76: 200 | F76: 204 | G76: 121 | H76: 121 | I76: 2036.761558 | L76: 11.1
A77: 73 | B77: 73 | C77: 2057 | D77: 206 | E77: 210 | F77: 206 | G77: 122 | H77: 122 | I77: 2057.270789 | L77: 11.2
A78: 74 | B78: 74 | C78: 2078 | D78: 208 | E78: 210 | F78: 208 | G78: 123 | H78: 123 | I78: 2077.986539 | L78: 11.3
A79: 75 | B79: 75 | C79: 2099 | D79: 210 | E79: 210 | F79: 210 | G79: 124 | H79: 124 | I79: 2098.910887 | L79: 11.4
A80: 76 | B80: 76 | C80: 2120 | D80: 212 | E80: 210 | F80: 212 | G80: 125 | H80: 125 | I80: 2120.045933 | L80: 11.5
A81: 77 | B81: 77 | C81: 2141 | D81: 214 | E81: 210 | F81: 214 | G81: 126 | H81: 126 | I81: 2141.393799 | L81: 11.6
A82: 78 | B82: 78 | C82: 2163 | D82: 216 | E82: 220 | F82: 216 | G82: 127 | H82: 127 | I82: 2162.956629 | L82: 11.7
A83: 79 | B83: 79 | C83: 2185 | D83: 218 | E83: 220 | F83: 218 | G83: 128 | H83: 128 | I83: 2184.736585 | L83: 11.8
A84: 80 | B84: 80 | C84: 2207 | D84: 221 | E84: 220 | F84: 221 | G84: 129 | H84: 129 | I84: 2206.735856 | L84: 11.9
A85: 81 | B85: 81 | C85: 2229 | D85: 223 | E85: 220 | F85: 223 | G85: 130 | H85: 130 | I85: 2228.956649 | L85: 12
A86: 82 | B86: 82 | C86: =ROUND($I86*C$5/$I$5,0) -> 2251 | D86: 225 | E86: 230 | F86: 225 | G86: 131 | H86: 131 | I86: 2251.401194 | L86: 12.1
A87: 83 | B87: 83 | C87: 2274 | D87: 227 | E87: 230 | F87: 227 | G87: 132 | H87: 132 | I87: 2274.071746 | L87: 12.2
A88: 84 | B88: 84 | C88: 2297 | D88: 230 | E88: 230 | F88: 230 | G88: 133 | H88: 133 | I88: 2296.97058 | L88: 12.3
A89: 85 | B89: 85 | C89: 2320 | D89: 232 | E89: 230 | F89: 232 | G89: 134 | H89: 134 | I89: 2320.099994 | L89: 12.4
A90: 86 | B90: 86 | C90: 2343 | D90: 234 | E90: 230 | F90: 234 | G90: 135 | H90: 135 | I90: 2343.462311 | L90: 12.5
A91: 87 | B91: 87 | C91: 2367 | D91: 237 | E91: 240 | F91: 237 | G91: 136 | H91: 136 | I91: 2367.059875 | L91: 12.6
A92: 88 | B92: 88 | C92: 2391 | D92: 239 | E92: 240 | F92: 239 | G92: 137 | H92: 137 | I92: 2390.895055 | L92: 12.7
A93: 89 | B93: 89 | C93: 2415 | D93: 241 | E93: 240 | F93: 241 | G93: 138 | H93: 138 | I93: 2414.970245 | L93: 12.8
A94: 90 | B94: 90 | C94: 2439 | D94: 244 | E94: 240 | F94: 244 | G94: 139 | H94: 139 | I94: 2439.28786 | L94: 12.9
A95: 91 | B95: 91 | C95: 2464 | D95: 246 | E95: 250 | F95: 246 | G95: 140 | H95: 140 | I95: 2463.850342 | L95: 13
A96: 92 | B96: 92 | C96: =ROUND($I96*C$5/$I$5,0) -> 2489 | D96: 249 | E96: 250 | F96: 249 | G96: 141 | H96: 141 | I96: 2488.660157 | L96: 13.1
A97: 93 | B97: 93 | C97: 2514 | D97: 251 | E97: 250 | F97: 251 | G97: 142 | H97: 142 | I97: 2513.719795 | L97: 13.2
A98: 94 | B98: 94 | C98: 2539 | D98: 254 | E98: 250 | F98: 254 | G98: 143 | H98: 143 | I98: 2539.031772 | L98: 13.3
A99: 95 | B99: 95 | C99: 2565 | D99: 256 | E99: 260 | F99: 256 | G99: 144 | H99: 144 | I99: 2564.598629 | L99: 13.4
A100: 96 | B100: 96 | C100: 2590 | D100: 259 | E100: 260 | F100: 259 | G100: 145 | H100: 145 | I100: 2590.422932 | L100: 13.5
A101: 97 | B101: 97 | C101: 2617 | D101: 262 | E101: 260 | F101: 262 | G101: 146 | H101: 146 | I101: 2616.507273 | L101: 13.6
A102: 98 | B102: 98 | C102: 2643 | D102: 264 | E102: 260 | F102: 264 | G102: 147 | H102: 147 | I102: 2642.854272 | L102: 13.7
A103: 99 | B103: 99 | C103: 2669 | D103: 267 | E103: 270 | F103: 267 | G103: 148 | H103: 148 | I103: 2669.466572 | L103: 13.8
A104: 100 | B104: 100 | C104: 2696 | D104: 270 | E104: 270 | F104: 270 | G104: 149 | H104: 149 | I104: 2696.346846 | L104: 13.9
A105: 101 | B105: 101 | C105: 2723 | D105: 272 | E105: 270 | F105: 272 | G105: 150 | H105: 150 | I105: 2723.497791 | L105: 14
A106: 102 | B106: 102 | C106: =ROUND($I106*C$5/$I$5,0) -> 2751 | D106: 275 | E106: 280 | F106: 275 | G106: 151 | H106: 151 | I106: 2750.922134 | L106: 14.1
A107: 103 | B107: 103 | C107: 2779 | D107: 278 | E107: 280 | F107: 278 | G107: 152 | H107: 152 | I107: 2778.622627 | L107: 14.2
A108: 104 | B108: 104 | C108: 2807 | D108: 281 | E108: 280 | F108: 281 | G108: 153 | H108: 153 | I108: 2806.602051 | L108: 14.3
A109: 105 | B109: 105 | C109: 2835 | D109: 283 | E109: 280 | F109: 283 | G109: 154 | H109: 154 | I109: 2834.863214 | L109: 14.4
A110: 106 | B110: 106 | C110: 2863 | D110: 286 | E110: 290 | F110: 286 | G110: 155 | H110: 155 | I110: 2863.408954 | L110: 14.5
A111: 107 | B111: 107 | C111: 2892 | D111: 289 | E111: 290 | F111: 289 | G111: 156 | H111: 156 | I111: 2892.242137 | L111: 14.6
A112: 108 | B112: 108 | C112: 2921 | D112: 292 | E112: 290 | F112: 292 | G112: 157 | H112: 157 | I112: 2921.365656 | L112: 14.7
A113: 109 | B113: 109 | C113: 2951 | D113: 295 | E113: 300 | F113: 295 | G113: 158 | H113: 158 | I113: 2950.782435 | L113: 14.8
A114: 110 | B114: 110 | C114: 2980 | D114: 298 | E114: 300 | F114: 298 | G114: 159 | H114: 159 | I114: 2980.495427 | L114: 14.9
A115: 111 | B115: 111 | C115: 3011 | D115: 301 | E115: 300 | F115: 301 | G115: 160 | H115: 160 | I115: 3010.507615 | L115: 15
A116: 112 | B116: 112 | C116: =ROUND($I116*C$5/$I$5,0) -> 3041 | D116: 304 | E116: 300 | F116: 304 | G116: 161 | H116: 161 | I116: 3040.822012 | L116: 15
A117: 113 | B117: 113 | C117: 3071 | D117: 307 | E117: 310 | F117: 307 | G117: 162 | H117: 162 | I117: 3071.44166 | L117: 15
A118: 114 | B118: 114 | C118: 3102 | D118: 310 | E118: 310 | F118: 310 | G118: 163 | H118: 163 | I118: 3102.369634 | L118: 15
A119: 115 | B119: 115 | C119: 3134 | D119: 313 | E119: 310 | F119: 313 | G119: 164 | H119: 164 | I119: 3133.609038 | L119: 15
A120: 116 | B120: 116 | C120: 3165 | D120: 317 | E120: 320 | F120: 317 | G120: 165 | H120: 165 | I120: 3165.163009 | L120: 15
A121: 117 | B121: 117 | C121: 3197 | D121: 320 | E121: 320 | F121: 320 | G121: 166 | H121: 166 | I121: 3197.034713 | L121: 15
A122: 118 | B122: 118 | C122: 3229 | D122: 323 | E122: 320 | F122: 323 | G122: 167 | H122: 167 | I122: 3229.22735 | L122: 15
A123: 119 | B123: 119 | C123: 3262 | D123: 326 | E123: 330 | F123: 326 | G123: 168 | H123: 168 | I123: 3261.744151 | L123: 15
A124: 120 | B124: 120 | C124: 3295 | D124: 329 | E124: 330 | F124: 329 | G124: 169 | H124: 169 | I124: 3294.588382 | L124: 15
A125: 121 | B125: 121 | C125: 3328 | D125: 333 | E125: 330 | F125: 333 | G125: 170 | H125: 170 | I125: 3327.763338 | L125: 15
A126: 122 | B126: 122 | C126: =ROUND($I126*C$5/$I$5,0) -> 3361 | D126: 336 | E126: 340 | F126: 336 | G126: 171 | H126: 171 | I126: 3361.272351 | L126: 15
A127: 123 | B127: 123 | C127: 3395 | D127: 340 | E127: 340 | F127: 340 | G127: 172 | H127: 172 | I127: 3395.118784 | L127: 15
A128: 124 | B128: 124 | C128: 3429 | D128: 343 | E128: 340 | F128: 343 | G128: 174 | H128: 174 | I128: 3429.306034 | L128: 15
A129: 125 | B129: 125 | C129: 3464 | D129: 346 | E129: 350 | F129: 346 | G129: 176 | H129: 176 | I129: 3463.837534 | L129: 15
A130: 126 | B130: 126 | C130: 3499 | D130: 350 | E130: 350 | F130: 350 | G130: 178 | H130: 178 | I130: 3498.71675 | L130: 15
A131: 127 | B131: 127 | C131: 3534 | D131: 353 | E131: 350 | F131: 353 | G131: 180 | H131: 180 | I131: 3533.947184 | L131: 15
A132: 128 | B132: 128 | C132: 3570 | D132: 357 | E132: 360 | F132: 357 | G132: 182 | H132: 182 | I132: 3569.532371 | L132: 15
A133: 129 | B133: 129 | C133: 3605 | D133: 361 | E133: 360 | F133: 361 | G133: 184 | H133: 184 | I133: 3605.475884 | L133: 15
A134: 130 | B134: 130 | C134: 3642 | D134: 364 | E134: 360 | F134: 364 | G134: =H134 -> 186 | H134: 186 | I134: =MAX(I133+I$5*0.01,I133*$J$4) -> 3641.781332 | L134: 15
A135: 131 | B135: 131 | C135: 3678 | D135: 368 | E135: =ROUND($I135*E$5/$I$5*0.1,0)*10 -> 370 | F135: 368 | G135: 188 | H135: 188 | I135: 3678.452358 | L135: 15
A136: 132 | B136: 132 | C136: =ROUND($I136*C$5/$I$5,0) -> 3715 | D136: 372 | E136: 370 | F136: 372 | G136: 190 | H136: 190 | I136: 3715.492644 | L136: 15
A137: 133 | B137: 133 | C137: 3753 | D137: 375 | E137: 380 | F137: 375 | G137: 192 | H137: 192 | I137: 3752.905909 | L137: 15
A138: 134 | B138: 134 | C138: 3791 | D138: 379 | E138: 380 | F138: 379 | G138: 194 | H138: 194 | I138: 3790.695908 | L138: 15
A139: 135 | B139: 135 | C139: 3829 | D139: 383 | E139: 380 | F139: 383 | G139: 196 | H139: 196 | I139: 3828.866434 | L139: 15
A140: 136 | B140: 136 | C140: 3867 | D140: 387 | E140: 390 | F140: 387 | G140: 198 | H140: 198 | I140: 3867.421319 | L140: 15
A141: 137 | B141: 137 | C141: 3906 | D141: 391 | E141: 390 | F141: 391 | G141: 200 | H141: 200 | I141: 3906.364434 | L141: 15
A142: 138 | B142: 138 | C142: 3946 | D142: 395 | E142: 390 | F142: 395 | G142: 202 | H142: 202 | I142: 3945.699688 | L142: 15
A143: 139 | B143: 139 | C143: 3985 | D143: 399 | E143: 400 | F143: 399 | G143: 204 | H143: 204 | I143: 3985.431029 | L143: 15
A144: 140 | B144: 140 | C144: 4026 | D144: 403 | E144: 400 | F144: 403 | G144: 206 | H144: 206 | I144: 4025.562447 | L144: 15
A145: 141 | B145: 141 | C145: 4066 | D145: 407 | E145: 410 | F145: 407 | G145: 208 | H145: 208 | I145: 4066.097969 | L145: 15
A146: 142 | B146: 142 | C146: =ROUND($I146*C$5/$I$5,0) -> 4107 | D146: 411 | E146: 410 | F146: 411 | G146: 210 | H146: 210 | I146: 4107.041664 | L146: 15
A147: 143 | B147: 143 | C147: 4148 | D147: 415 | E147: 410 | F147: 415 | G147: 212 | H147: 212 | I147: 4148.397643 | L147: 15
A148: 144 | B148: 144 | C148: 4190 | D148: 419 | E148: 420 | F148: 419 | G148: 214 | H148: 214 | I148: 4190.170058 | L148: 15
A149: 145 | B149: 145 | C149: 4232 | D149: 423 | E149: 420 | F149: 423 | G149: 216 | H149: 216 | I149: 4232.363101 | L149: 15
A150: 146 | B150: 146 | C150: 4275 | D150: 427 | E150: 430 | F150: 427 | G150: 218 | H150: 218 | I150: 4274.981008 | L150: 15
A151: 147 | B151: 147 | C151: 4318 | D151: 432 | E151: 430 | F151: 432 | G151: 220 | H151: 220 | I151: 4318.028058 | L151: 15
A152: 148 | B152: 148 | C152: 4362 | D152: 436 | E152: 440 | F152: 436 | G152: 222 | H152: 222 | I152: 4361.508571 | L152: 15
A153: 149 | B153: 149 | C153: 4405 | D153: 441 | E153: 440 | F153: 441 | G153: 224 | H153: 224 | I153: 4405.426912 | L153: 15
A154: 150 | B154: 150 | C154: 4450 | D154: 445 | E154: 440 | F154: 445 | G154: 226 | H154: 226 | I154: 4449.787491 | L154: 15
A155: 151 | B155: 151 | C155: 4495 | D155: 449 | E155: 450 | F155: 449 | G155: 228 | H155: 228 | I155: 4494.594759 | L155: 15
A156: 152 | B156: 152 | C156: =ROUND($I156*C$5/$I$5,0) -> 4540 | D156: 454 | E156: 450 | F156: 454 | G156: 230 | H156: 230 | I156: 4539.853216 | L156: 15
A157: 153 | B157: 153 | C157: 4586 | D157: 459 | E157: 460 | F157: 459 | G157: 232 | H157: 232 | I157: 4585.567404 | L157: 15
A158: 154 | B158: 154 | C158: 4632 | D158: 463 | E158: 460 | F158: 463 | G158: 234 | H158: 234 | I158: 4631.741913 | L158: 15
A159: 155 | B159: 155 | C159: 4678 | D159: 468 | E159: 470 | F159: 468 | G159: 236 | H159: 236 | I159: 4678.381377 | L159: 15
A160: 156 | B160: 156 | C160: 4725 | D160: 473 | E160: 470 | F160: 473 | G160: 238 | H160: 238 | I160: 4725.490478 | L160: 15
A161: 157 | B161: 157 | C161: 4773 | D161: 477 | E161: 480 | F161: 477 | G161: 240 | H161: 240 | I161: 4773.073947 | L161: 15
A162: 158 | B162: 158 | C162: 4821 | D162: 482 | E162: 480 | F162: 482 | G162: 242 | H162: 242 | I162: 4821.136558 | L162: 15
A163: 159 | B163: 159 | C163: 4870 | D163: 487 | E163: 490 | F163: 487 | G163: 244 | H163: 244 | I163: 4869.683137 | L163: 15
A164: 160 | B164: 160 | C164: 4919 | D164: 492 | E164: 490 | F164: 492 | G164: 246 | H164: 246 | I164: 4918.718558 | L164: 15
A165: 161 | B165: 161 | C165: 4968 | D165: 497 | E165: 500 | F165: 497 | G165: 248 | H165: 248 | I165: 4968.247742 | L165: 15
A166: 162 | B166: 162 | C166: =ROUND($I166*C$5/$I$5,0) -> 5018 | D166: 502 | E166: 500 | F166: 502 | G166: 250 | H166: 250 | I166: 5018.275661 | L166: 15
A167: 163 | B167: 163 | C167: 5069 | D167: 507 | E167: 510 | F167: 507 | G167: 252 | H167: 252 | I167: 5068.807339 | L167: 15
A168: 164 | B168: 164 | C168: 5120 | D168: 512 | E168: 510 | F168: 512 | G168: 254 | H168: 254 | I168: 5119.847846 | L168: 15
A169: 165 | B169: 165 | C169: 5171 | D169: 517 | E169: 520 | F169: 517 | G169: 256 | H169: 256 | I169: 5171.402308 | L169: 15
A170: 166 | B170: 166 | C170: 5223 | D170: 522 | E170: 520 | F170: 522 | G170: 258 | H170: 258 | I170: 5223.475898 | L170: 15
A171: 167 | B171: 167 | C171: 5276 | D171: 528 | E171: 530 | F171: 528 | G171: 260 | H171: 260 | I171: 5276.073846 | L171: 15
A172: 168 | B172: 168 | C172: 5329 | D172: 533 | E172: 530 | F172: 533 | G172: 262 | H172: 262 | I172: 5329.201429 | L172: 15
A173: 169 | B173: 169 | C173: 5383 | D173: 538 | E173: 540 | F173: 538 | G173: 264 | H173: 264 | I173: 5382.863983 | L173: 15
A174: 170 | B174: 170 | C174: 5437 | D174: 544 | E174: 540 | F174: 544 | G174: 266 | H174: 266 | I174: 5437.066893 | L174: 15
A175: 171 | B175: 171 | C175: 5492 | D175: 549 | E175: 550 | F175: 549 | G175: 268 | H175: 268 | I175: 5491.815602 | L175: 15
A176: 172 | B176: 172 | C176: =ROUND($I176*C$5/$I$5,0) -> 5547 | D176: 555 | E176: 550 | F176: 555 | G176: 270 | H176: 270 | I176: 5547.115604 | L176: 15
A177: 173 | B177: 173 | C177: 5603 | D177: 560 | E177: 560 | F177: 560 | G177: 272 | H177: 272 | I177: 5602.972451 | L177: 15
A178: 174 | B178: 174 | C178: 5659 | D178: 566 | E178: 570 | F178: 566 | G178: 274 | H178: 274 | I178: 5659.39175 | L178: 15
A179: 175 | B179: 175 | C179: 5716 | D179: 572 | E179: 570 | F179: 572 | G179: 276 | H179: 276 | I179: 5716.379165 | L179: 15
A180: 176 | B180: 176 | C180: 5774 | D180: 577 | E180: 580 | F180: 577 | G180: 278 | H180: 278 | I180: 5773.940416 | L180: 15
A181: 177 | B181: 177 | C181: 5832 | D181: 583 | E181: 580 | F181: 583 | G181: 280 | H181: 280 | I181: 5832.081283 | L181: 15
A182: 178 | B182: 178 | C182: 5891 | D182: 589 | E182: 590 | F182: 589 | G182: 282 | H182: 282 | I182: 5890.8076 | L182: 15
A183: 179 | B183: 179 | C183: 5950 | D183: 595 | E183: 600 | F183: 595 | G183: 284 | H183: 284 | I183: 5950.125264 | L183: 15
A184: 180 | B184: 180 | C184: 6010 | D184: 601 | E184: 600 | F184: 601 | G184: 286 | H184: 286 | I184: 6010.040229 | L184: 15
A185: 181 | B185: 181 | C185: 6071 | D185: 607 | E185: 610 | F185: 607 | G185: 288 | H185: 288 | I185: 6070.558509 | L185: 15
A186: 182 | B186: 182 | C186: =ROUND($I186*C$5/$I$5,0) -> 6132 | D186: 613 | E186: 610 | F186: 613 | G186: 290 | H186: 290 | I186: 6131.68618 | L186: 15
A187: 183 | B187: 183 | C187: 6193 | D187: 619 | E187: 620 | F187: 619 | G187: 292 | H187: 292 | I187: 6193.429378 | L187: 15
A188: 184 | B188: 184 | C188: 6256 | D188: 626 | E188: 630 | F188: 626 | G188: 294 | H188: 294 | I188: 6255.794301 | L188: 15
A189: 185 | B189: 185 | C189: 6319 | D189: 632 | E189: 630 | F189: 632 | G189: 296 | H189: 296 | I189: 6318.787209 | L189: 15
A190: 186 | B190: 186 | C190: 6382 | D190: 638 | E190: 640 | F190: 638 | G190: 298 | H190: 298 | I190: 6382.414427 | L190: 15
A191: 187 | B191: 187 | C191: 6447 | D191: 645 | E191: 640 | F191: 645 | G191: 300 | H191: 300 | I191: 6446.68234 | L191: 15
A192: 188 | B192: 188 | C192: 6512 | D192: 651 | E192: 650 | F192: 651 | G192: 302 | H192: 302 | I192: 6511.597401 | L192: 15
A193: 189 | B193: 189 | C193: 6577 | D193: 658 | E193: 660 | F193: 658 | G193: 304 | H193: 304 | I193: 6577.166127 | L193: 15
A194: 190 | B194: 190 | C194: 6643 | D194: 664 | E194: 660 | F194: 664 | G194: 306 | H194: 306 | I194: 6643.395098 | L194: 15
A195: 191 | B195: 191 | C195: 6710 | D195: 671 | E195: 670 | F195: 671 | G195: 308 | H195: 308 | I195: 6710.290965 | L195: 15
A196: 192 | B196: 192 | C196: =ROUND($I196*C$5/$I$5,0) -> 6778 | D196: 678 | E196: 680 | F196: 678 | G196: 310 | H196: 310 | I196: 6777.860441 | L196: 15
A197: 193 | B197: 193 | C197: 6846 | D197: 685 | E197: 680 | F197: 685 | G197: 312 | H197: 312 | I197: 6846.11031 | L197: 15
A198: 194 | B198: 194 | C198: 6915 | D198: 692 | E198: 690 | F198: 692 | G198: =H198 -> 314 | H198: 314 | I198: =MAX(I197+I$5*0.01,I197*$J$4) -> 6915.047423 | L198: 15
A199: 195 | B199: 195 | C199: 6985 | D199: 698 | E199: =ROUND($I199*E$5/$I$5*0.1,0)*10 -> 700 | F199: 698 | G199: 316 | H199: 316 | I199: 6984.678701 | L199: 15
A200: 196 | B200: 196 | C200: 7055 | D200: 706 | E200: 710 | F200: 706 | G200: 318 | H200: 318 | I200: 7055.011132 | L200: 15
A201: 197 | B201: 197 | C201: 7126 | D201: 713 | E201: 710 | F201: 713 | G201: 320 | H201: 320 | I201: 7126.051779 | L201: 15
... 103 more rows
